bitfinex/quotes_BTCUSD_20220111
["timestamp","ask_amount","ask_price","bid_price","bid_amount"]
[1641912429463,0.364142,41553.0,41550.0,0.023]
[1641912429665,0.39129128,41554.0,41550.0,0.023]
[1641912429865,0.62721908,41553.0,41550.0,0.023]
[1641912430064,0.62721908,41553.0,41550.0,0.01]
[1641912430065,0.26307708,41553.0,41550.0,0.01]
[1641912430884,0.30907708,41553.0,41550.0,0.015]
[1641912431264,0.046,41553.0,41550.0,0.015]
[1641912431465,0.0459,41553.0,41550.0,0.015]
[1641912431727,0.0002258,41552.0,41551.0,0.375078]
[1641912431919,0.0002258,41552.0,41551.0,1.075078]
[1641912432818,0.0002258,41552.0,41551.0,0.752078]
[1641912433017,0.0002258,41552.0,41551.0,0.377]
[1641912433825,0.0002258,41552.0,41551.0,0.727]
[1641912434020,0.0002258,41552.0,41551.0,0.7]
[1641912434819,0.0002258,41552.0,41551.0,1.1]
[1641912435219,0.0002258,41552.0,41551.0,1.475078]
[1641912435679,0.0002258,41552.0,41551.0,0.425078]
[1641912435881,0.0002258,41552.0,41551.0,0.05]
[1641912436081,0.3643678,41552.0,41550.0,0.01]
[1641912436284,0.60004798,41551.0,41550.0,0.01]
[1641912436481,1.28448709,41551.0,41550.0,0.01]
[1641912436682,1.74064266,41551.0,41550.0,0.01]
[1641912436881,1.29648709,41551.0,41550.0,0.0001]
[1641912437283,0.9,41550.0,41535.0,0.00129655]
[1641912437483,0.9,41550.0,41533.0,0.0722307]
[1641912437484,0.06019,41546.0,41533.0,0.0722307]
[1641912437682,0.40441483,41545.0,41530.0,0.00071278]
[1641912437883,0.36047195,41538.0,41530.0,0.00071278]
[1641912438083,0.00125781,41542.0,41530.0,0.00071277]
[1641912438284,0.29939211,41540.0,41532.0,0.2864056]
[1641912438684,0.29939211,41540.0,41530.0,0.00071277]
[1641912438888,0.29239211,41540.0,41532.0,0.023]
[1641912439084,0.6989569,41540.0,41532.0,0.023]
[1641912439321,0.28073818,41539.0,41532.0,0.023]
[1641912439518,0.29239211,41540.0,41532.0,0.023]
[1641912439719,0.58396282,41540.0,41532.0,0.023]
[1641912440118,0.58396282,41540.0,41530.0,0.04885254]
[1641912440119,0.58096282,41540.0,41530.0,0.04885254]
[1641912440317,0.58096282,41540.0,41530.0,0.00070342]
[1641912440717,0.3506264,41539.0,41530.0,0.24887507]
[1641912441119,0.3506264,41539.0,41530.0,0.05070342]
[1641912441320,0.3949264,41539.0,41530.0,0.05070342]
[1641912441524,0.3949264,41539.0,41530.0,0.00070342]
[1641912441525,0.364142,41538.0,41530.0,0.00070342]
[1641912441719,0.0443,41537.0,41530.0,0.0007034]
[1641912442120,0.27874556,41531.0,41530.0,0.0007034]
[1641912442520,0.0443,41532.0,41530.0,0.0007034]
[1641912442960,0.0443,41532.0,41530.0,0.00070594]
[1641912443563,0.27293498,41531.0,41530.0,0.00070594]
[1641912443961,0.14003499,41531.0,41530.0,0.00070594]
[1641912444164,0.14003499,41531.0,41529.0,0.00070594]
[1641912444761,0.005,41531.0,41529.0,0.00070594]
[1641912445363,0.005,41531.0,41528.0,0.00070595]
[1641912445763,0.26920483,41530.0,41528.0,0.00070595]
[1641912446161,0.0443,41532.0,41528.0,0.00070595]
[1641912446563,0.00028756,41530.0,41527.0,0.00070531]
[1641912446822,0.2664753,41528.0,41527.0,0.00070531]
[1641912447217,0.5820848,41528.0,41527.0,0.00070531]
[1641912447416,0.6263848,41528.0,41527.0,0.00070531]
[1641912447618,0.9905268,41528.0,41526.0,0.42]
[1641912447818,0.364142,41527.0,41526.0,0.42]
[1641912448017,0.408442,41527.0,41526.0,0.42]
[1641912448215,0.68870592,41527.0,41526.0,0.42]
[1641912448817,0.416442,41527.0,41526.0,0.42]
[1641912449015,0.416442,41527.0,41526.0,0.47]
[1641912449418,0.426442,41527.0,41526.0,0.47]
[1641912449816,0.426442,41527.0,41526.0,0.42]
[1641912450014,0.418442,41527.0,41526.0,0.42]
[1641912450217,0.69692787,41527.0,41526.0,0.42]
[1641912450464,0.70299336,41527.0,41526.0,0.42]
[1641912450664,0.418442,41527.0,41526.0,0.42]
[1641912450863,0.0623,41527.0,41526.0,0.42]
[1641912451065,0.8,41526.0,41524.0,0.00070551]
[1641912451268,0.71735386,41525.0,41524.0,0.00070551]
[1641912451468,0.40971359,41525.0,41524.0,0.00070551]
[1641912451666,0.75971359,41525.0,41524.0,0.00070551]
[1641912451866,0.85971359,41525.0,41524.0,0.00070551]
[1641912452069,1.21769615,41525.0,41524.0,0.00070551]
[1641912452465,1.21769615,41525.0,41522.0,0.00070552]
[1641912452667,0.12046,41524.0,41522.0,0.00070552]
[1641912452868,0.408442,41523.0,41522.0,0.00070552]
[1641912453369,0.0443,41523.0,41522.0,0.00070552]
[1641912453567,0.01,41525.0,41522.0,0.00070552]
[1641912453765,0.01,41525.0,41520.0,0.0007055]
[1641912454222,0.01040547,41527.0,41526.0,0.55682618]
[1641912454521,0.01040547,41527.0,41526.0,0.75682618]
[1641912454718,0.01040547,41527.0,41526.0,2.13318491]
[1641912455116,0.01040547,41527.0,41526.0,1.03318491]
[1641912455518,0.01040547,41527.0,41526.0,1.12635873]
[1641912455717,0.67922556,41535.0,41527.0,0.75]
[1641912456118,0.67922556,41535.0,41527.0,0.42]
[1641912456119,0.73942956,41535.0,41527.0,0.42]
[1641912456318,0.408442,41534.0,41527.0,0.42]
[1641912456518,0.060209,41531.0,41527.0,0.42]
[1641912456816,0.364142,41530.0,41527.0,0.42]
[1641912457018,1.62130878,41528.0,41527.0,0.42]
[1641912457223,2.30062855,41528.0,41527.0,0.42070547]
[1641912457717,0.67931977,41528.0,41527.0,0.42070547]
[1641912458373,1.22361977,41528.0,41527.0,0.28230547]
[1641912458572,0.82361977,41528.0,41527.0,0.2389]
[1641912458972,0.83361977,41528.0,41527.0,0.2389]
[1641912459172,0.84361977,41528.0,41527.0,0.2389]
[1641912459373,0.74361977,41528.0,41527.0,0.2389]
[1641912459573,0.80383877,41528.0,41527.0,0.2389]
[1641912459972,0.89383877,41528.0,41527.0,0.2389]
[1641912460273,0.78383877,41528.0,41527.0,0.2389]
[1641912460472,0.65,41527.0,41525.0,0.00070548]
[1641912460676,1.67619035,41526.0,41525.0,0.00070548]
[1641912460874,1.508442,41526.0,41525.0,0.00070546]
[1641912461075,0.508442,41526.0,41525.0,0.00070546]
[1641912461473,1.31619019,41526.0,41525.0,0.00070546]
[1641912462114,1.31619019,41526.0,41523.0,0.00070547]
[1641912462515,0.120452,41525.0,41523.0,0.00070547]
[1641912462715,0.858442,41524.0,41523.0,0.00070547]
[1641912462916,0.408442,41524.0,41523.0,0.00070547]
[1641912463116,0.508442,41524.0,41523.0,0.00070547]
[1641912463516,1.108442,41524.0,41523.0,0.00070547]
[1641912464118,0.628892,41524.0,41522.0,0.00070548]
[1641912464319,0.508442,41524.0,41522.0,0.00070548]
[1641912464518,0.56866551,41524.0,41522.0,0.00070548]
[1641912464921,0.62866551,41524.0,41521.0,0.00070551]
[1641912465565,0.68889351,41524.0,41521.0,0.00070551]
[1641912465764,1.02246952,41524.0,41520.0,0.00070552]
[1641912465964,0.120456,41522.0,41520.0,0.00070552]
[1641912466164,1.19590138,41521.0,41520.0,0.00070552]
[1641912466564,1.8075427,41521.0,41520.0,0.00070552]
[1641912466967,1.8175427,41521.0,41518.0,0.00070553]
[1641912467266,1.93800219,41521.0,41518.0,0.00070553]
[1641912467668,1.264142,41519.0,41518.0,0.00070553]
[1641912467865,1.31698723,41519.0,41518.0,0.00070553]
[1641912468065,1.52722623,41519.0,41518.0,0.00070553]
[1641912468266,1.52722623,41519.0,41517.0,0.00070556]
[1641912468468,0.32206133,41509.0,41506.0,0.42]
[1641912468669,0.32606555,41507.0,41506.0,0.42]
[1641912468865,0.68666384,41507.0,41506.0,0.42]
[1641912469064,1.05080584,41507.0,41506.0,0.42]
[1641912469516,1.11105484,41507.0,41506.0,0.42]
[1641912469918,0.060246,41505.0,41501.0,0.01]
[1641912470118,0.364142,41504.0,41501.0,0.01]
[1641912470312,0.97940796,41507.0,41501.0,0.01]
[1641912470515,0.0443,41507.0,41501.0,0.01]
[1641912470918,0.0523,41507.0,41501.0,0.01]
[1641912471116,0.008,41507.0,41503.0,0.26135741]
[1641912471317,0.008,41507.0,41504.0,0.375078]
[1641912471517,0.008,41507.0,41504.0,0.77063845]
[1641912471716,0.00044136,41506.0,41504.0,0.92063845]
[1641912472117,0.00044136,41506.0,41504.0,0.575078]
[1641912472321,0.0443,41518.0,41506.0,1.3]
[1641912472520,0.9087,41523.0,41507.0,0.375078]
[1641912472723,0.9087,41523.0,41512.0,0.00129455]
[1641912472968,0.046,41518.0,41512.0,0.41360549]
[1641912473167,0.046,41518.0,41517.0,1.73522084]
[1641912473370,0.046,41518.0,41517.0,2.42519061]
[1641912473568,0.046,41518.0,41517.0,2.57519061]
[1641912474168,0.0032861,41529.0,41517.0,2.57519061]
[1641912474368,0.0032861,41529.0,41522.0,0.35114175]
[1641912474669,0.0032861,41529.0,41523.0,0.375078]
[1641912474869,0.0132861,41529.0,41525.0,0.27237349]
[1641912475068,0.0132861,41529.0,41525.0,0.74237349]
[1641912475469,0.01,41529.0,41525.0,0.74237349]
[1641912476073,0.01,41529.0,41528.0,0.37634855]
[1641912476269,0.01,41529.0,41528.0,1.67634855]
[1641912476471,0.00082173,41532.0,41528.0,1.96924855]
[1641912476730,0.00082176,41532.0,41531.0,1.67628078]
[1641912477123,0.00082176,41532.0,41531.0,0.425078]
[1641912477323,0.00082176,41532.0,41531.0,0.875078]
[1641912477927,0.00064469,41534.0,41531.0,0.875078]
[1641912478125,0.00064469,41534.0,41532.0,0.375078]
[1641912478323,0.00064469,41534.0,41531.0,0.05]
[1641912478523,0.00064469,41534.0,41528.0,0.0929]
[1641912478923,0.00664469,41534.0,41531.0,0.022]
[1641912479123,2.07829027,41533.0,41531.0,0.022]
[1641912479322,0.364142,41532.0,41531.0,0.022]
[1641912480121,0.364142,41532.0,41528.0,0.1429]
[1641912480122,0.364142,41532.0,41528.0,0.0929]
[1641912480768,0.120416,41531.0,41528.0,0.0929]
[1641912480967,0.364142,41530.0,41528.0,0.0929]
[1641912481370,1.564142,41529.0,41515.0,0.00138396]
[1641912481567,0.26637138,41528.0,41515.0,0.00071237]
[1641912481766,0.28342312,41519.0,41515.0,0.00071237]
[1641912482667,0.64756512,41519.0,41515.0,0.00071228]
[1641912482966,0.383142,41519.0,41515.0,0.00071228]
[1641912483966,0.69351764,41519.0,41515.0,0.00071228]
[1641912484223,0.67451764,41519.0,41515.0,0.00071228]
[1641912484418,0.67451764,41519.0,41513.0,0.40279021]
[1641912484419,1.25,41518.0,41513.0,0.40279021]
[1641912484622,0.06024206,41513.0,41505.0,0.60020905]
[1641912484821,0.06024206,41513.0,41503.0,1.12576702]
[1641912484822,0.060247,41509.0,41503.0,1.02020905]
[1641912485020,0.0443,41508.0,41503.0,0.60020905]
[1641912485220,0.44968264,41504.0,41501.0,0.01]
[1641912485419,0.364142,41503.0,41501.0,0.01]
[1641912485824,0.0443,41504.0,41501.0,0.01]
[1641912486422,0.364142,41503.0,41501.0,0.01]
[1641912486721,0.42479628,41503.0,41501.0,0.01]
[1641912487023,0.3662673,41502.0,41501.0,0.04]
[1641912487224,0.7304093,41502.0,41501.0,0.04]
[1641912487423,1.51952379,41502.0,41501.0,0.04]
[1641912487622,1.61952379,41502.0,41501.0,0.04]
[1641912488069,0.91779577,41501.0,41492.0,0.60020905]
[1641912488269,1.32744853,41501.0,41491.0,0.60020905]
[1641912488472,0.06026402,41496.0,41491.0,0.60020905]
[1641912488669,0.104563,41495.0,41491.0,0.60020905]
[1641912488871,0.104563,41495.0,41492.0,0.375078]
[1641912488872,0.0443,41495.0,41492.0,0.375078]
[1641912489571,0.29745975,41499.0,41496.0,0.24745909]
[1641912489769,0.0069,41501.0,41491.0,0.02285965]
[1641912489770,0.0443,41500.0,41491.0,0.02285965]
[1641912489972,0.0443,41499.0,41493.0,0.05]
[1641912490171,0.0443,41499.0,41495.0,0.00124931]
[1641912490370,0.00039942,41503.0,41496.0,0.375078]
[1641912490571,0.00039942,41503.0,41496.0,0.15]
[1641912490974,0.02439942,41503.0,41501.0,0.30991033]
[1641912491372,0.02439942,41503.0,41496.0,0.051]
[1641912491815,0.0003959,41498.0,41496.0,0.001]
[1641912492216,0.0003959,41498.0,41497.0,0.35085959]
[1641912492413,0.0003959,41498.0,41497.0,0.40085959]
[1641912492615,0.0003959,41498.0,41497.0,0.35085959]
[1641912493020,0.0443,41506.0,41497.0,1.99048819]
[1641912493321,0.9978,41514.0,41501.0,0.00122176]
[1641912493524,0.5478,41514.0,41511.0,0.24257529]
[1641912493718,0.01909,41519.0,41511.0,0.24257529]
[1641912493919,0.01909,41519.0,41513.0,0.00121978]
[1641912494517,0.01909,41519.0,41518.0,0.34247175]
[1641912494917,0.04209,41519.0,41518.0,0.34247175]
[1641912495118,0.04209,41519.0,41518.0,1.09247175]
[1641912495318,0.04209,41519.0,41518.0,0.75]
[1641912495573,0.023,41519.0,41513.0,0.00689063]
[1641912495772,0.023,41519.0,41513.0,0.05567087]
[1641912495974,0.023,41519.0,41513.0,0.00567087]
[1641912496177,0.023,41519.0,41513.0,0.00067087]
[1641912496178,0.364142,41518.0,41513.0,0.00067087]
[1641912496372,0.61048688,41517.0,41513.0,0.00067087]
[1641912496574,0.364142,41516.0,41513.0,0.00067087]
[1641912496877,0.364142,41516.0,41500.0,0.58754671]
[1641912496878,0.00128791,41501.0,41500.0,0.58754671]
[1641912497073,0.70584191,41501.0,41500.0,0.58754671]
[1641912497271,0.70584191,41501.0,41489.0,0.42]
[1641912497480,0.45682711,41493.0,41489.0,0.42]
[1641912497676,0.26475021,41492.0,41489.0,0.42]
[1641912497876,0.45682711,41493.0,41489.0,0.42]
[1641912498975,0.46482711,41493.0,41489.0,0.449]
[1641912499222,0.008,41493.0,41489.0,0.449]
[1641912499616,0.24795616,41491.0,41489.0,0.449]
[1641912500014,0.24795616,41491.0,41489.0,0.499]
[1641912500216,0.29800522,41494.0,41492.0,0.25]
[1641912500415,0.0443,41497.0,41489.0,0.47]
[1641912500815,0.0443,41497.0,41489.0,0.465]
[1641912501016,0.0533,41497.0,41489.0,0.49]
[1641912501418,0.29617482,41494.0,41489.0,0.49]
[1641912501617,0.00034289,41493.0,41489.0,0.445]
[1641912501816,0.00034289,41493.0,41491.0,0.00085966]
[1641912502818,0.00034289,41493.0,41492.0,0.375078]
[1641912503069,0.00834289,41493.0,41491.0,0.029]
[1641912503671,0.00834289,41493.0,41492.0,1.025078]
[1641912504074,0.00834289,41493.0,41492.0,1.075078]
[1641912504272,0.00034289,41493.0,41492.0,1.075078]
[1641912504669,0.00034289,41493.0,41492.0,0.425078]
[1641912505171,0.00734289,41493.0,41492.0,0.713078]
[1641912505371,0.00734289,41493.0,41492.0,0.413078]
[1641912505572,0.00734289,41493.0,41492.0,0.038]
[1641912506173,0.33649961,41493.0,41490.0,0.00067032]
[1641912507020,0.00934289,41493.0,41490.0,0.03067032]
[1641912507420,0.00934289,41493.0,41491.0,0.375078]
[1641912507821,0.00934289,41493.0,41490.0,0.03]
[1641912508221,0.29942292,41491.0,41489.0,0.42067033]
[1641912508423,0.74832271,41490.0,41489.0,0.42067033]
[1641912508625,1.11373781,41490.0,41489.0,0.00067033]
[1641912508924,1.15803781,41490.0,41489.0,0.00067033]
[1641912509127,1.26603781,41490.0,41489.0,0.02]
[1641912509322,1.21303574,41490.0,41489.0,0.02]
[1641912510670,0.89887096,41490.0,41489.0,0.02]
[1641912511070,0.80787096,41490.0,41489.0,0.02]
[1641912511569,0.80821173,41490.0,41489.0,0.02]
[1641912511772,0.75821173,41490.0,41489.0,0.02]
[1641912511970,0.75693863,41490.0,41489.0,0.02]
[1641912512169,0.42578277,41490.0,41489.0,0.02]
[1641912512372,0.04464077,41490.0,41487.0,0.00071175]
[1641912512570,0.04464077,41490.0,41487.0,0.00141452]
[1641912512872,0.00034077,41490.0,41487.0,0.00070277]
[1641912513073,0.03734077,41490.0,41489.0,1.50777828]
[1641912513273,0.03734077,41490.0,41489.0,1.88285628]
[1641912513473,0.060246,41503.0,41490.0,1.3]
[1641912513672,0.060246,41503.0,41490.0,1.40128262]
[1641912513874,0.00124833,41505.0,41490.0,1.50128262]
[1641912514073,0.3838224,41497.0,41490.0,0.05128262]
[1641912514344,2.38377361,41491.0,41487.0,0.00070277]
[1641912514933,2.38377361,41491.0,41487.0,0.01670277]
[1641912515135,2.38377361,41491.0,41487.0,0.016]
[1641912515334,0.364142,41490.0,41487.0,0.016]
[1641912515534,2.38377361,41491.0,41487.0,0.016]
[1641912515733,0.424406,41490.0,41487.0,0.016]
[1641912516340,0.26826788,41489.0,41486.0,0.00070471]
[1641912516536,0.38699856,41488.0,41486.0,0.00070471]
[1641912516738,0.27373362,41487.0,41486.0,0.00070471]
[1641912516941,0.63787562,41487.0,41486.0,0.00070471]
[1641912517135,0.63787562,41487.0,41486.0,0.04370471]
[1641912517337,0.364142,41487.0,41486.0,0.04370471]
[1641912517535,0.364142,41487.0,41486.0,0.043]
[1641912518368,0.364142,41487.0,41485.0,0.00070473]
[1641912518567,0.060268,41487.0,41485.0,0.00070473]
[1641912518769,0.060268,41487.0,41484.0,0.00070473]
[1641912518966,0.067268,41487.0,41485.0,0.012]
[1641912519167,0.364142,41486.0,41485.0,0.012]
[1641912520372,0.06056147,41489.0,41484.0,0.00070473]
[1641912520575,0.06056147,41489.0,41483.0,0.00070434]
[1641912520773,0.06056147,41489.0,41484.0,0.375078]
[1641912520774,0.00029747,41489.0,41484.0,0.375078]
[1641912520972,0.00829747,41489.0,41484.0,0.383078]
[1641912521170,0.00829747,41489.0,41487.0,0.24074479]
[1641912521375,0.00829747,41489.0,41488.0,1.275078]
[1641912521572,0.00829747,41489.0,41488.0,1.74431585]
[1641912521821,0.008,41489.0,41488.0,1.74431585]
[1641912522224,0.008,41489.0,41488.0,0.84431585]
[1641912522422,0.060256,41496.0,41488.0,0.84431585]
[1641912522723,0.060256,41496.0,41488.0,0.46923785]
[1641912523122,0.093256,41496.0,41488.0,0.47323785]
[1641912523522,0.093256,41496.0,41488.0,0.004]
[1641912523721,0.093256,41496.0,41490.0,0.00070437]
[1641912523921,0.364142,41495.0,41490.0,0.00070437]
[1641912524124,0.093256,41496.0,41490.0,0.00070437]
[1641912524321,0.364142,41495.0,41490.0,0.00070437]
[1641912524924,0.364142,41495.0,41491.0,0.00070436]
[1641912525121,0.38888042,41494.0,41491.0,0.00070436]
[1641912525323,0.364142,41493.0,41491.0,0.00070436]
[1641912526167,0.364142,41493.0,41490.0,0.00570437]
[1641912526373,0.06026,41494.0,41490.0,0.00070437]
[1641912526768,0.00029958,41492.0,41490.0,0.00070437]
[1641912526969,0.00029958,41492.0,41490.0,0.00470437]
[1641912527373,0.00029958,41492.0,41490.0,0.00470432]
[1641912527573,0.07426,41494.0,41490.0,0.00470432]
[1641912527873,0.12054468,41492.0,41490.0,0.00470432]
[1641912528075,0.41540405,41491.0,41490.0,0.00470432]
[1641912528274,0.45970405,41491.0,41490.0,0.00470432]
[1641912528473,0.45970405,41491.0,41490.0,0.00540864]
[1641912528773,0.35,41490.0,41484.0,0.00281772]
[1641912528973,0.41154163,41485.0,41484.0,0.00281772]
[1641912529226,0.86998363,41485.0,41484.0,0.00281772]
[1641912529621,1.44723717,41485.0,41484.0,0.00281772]
[1641912529820,1.85954717,41485.0,41476.0,1.00950166]
[1641912530024,0.06028119,41482.0,41476.0,1.00950166]
[1641912530220,0.28604482,41481.0,41476.0,1.00950166]
[1641912530420,0.35094561,41481.0,41476.0,1.00950166]
[1641912530620,0.34346537,41481.0,41476.0,0.42]
[1641912530921,0.47925701,41478.0,41477.0,0.30070621]
[1641912531123,0.76145545,41478.0,41477.0,0.00070621]
[1641912531721,0.52355701,41478.0,41477.0,0.40070621]
[1641912532120,0.0443,41478.0,41477.0,0.4]
[1641912532525,0.0443,41478.0,41477.0,0.775078]
[1641912532721,0.28593822,41487.0,41477.0,1.48611645]
[1641912532963,0.33593822,41487.0,41477.0,0.69524268]
[1641912533164,0.33593822,41487.0,41482.0,0.25693768]
[1641912533464,0.33593822,41487.0,41477.0,0.4]
[1641912533664,0.28247003,41486.0,41477.0,0.4]
[1641912533864,0.28247003,41486.0,41477.0,0.98950166]
[1641912534464,0.28247003,41486.0,41479.0,0.33585026]
[1641912534465,0.59277778,41486.0,41479.0,0.33585026]
[1641912534765,0.59277778,41486.0,41479.0,0.0007037]
[1641912535268,0.60277778,41486.0,41479.0,0.0007037]
[1641912535664,0.60277778,41486.0,41480.0,0.00070369]
[1641912536064,0.29247003,41486.0,41480.0,0.00070369]
[1641912536267,0.28247003,41486.0,41480.0,0.00070369]
[1641912536468,0.28507099,41486.0,41480.0,0.00070369]
[1641912536724,0.28593822,41487.0,41481.0,0.02723109]
[1641912536920,0.28593822,41487.0,41481.0,0.02793477]
[1641912537119,0.29520739,41486.0,41481.0,0.02793477]
[1641912537924,0.012,41486.0,41481.0,0.02793477]
[1641912538121,0.012,41486.0,41481.0,0.027935]
[1641912538520,0.27859004,41486.0,41481.0,0.027935]
[1641912539123,0.28859004,41486.0,41481.0,0.027935]
[1641912539325,0.00123013,41482.0,41481.0,0.027935]
[1641912539723,0.33814102,41482.0,41481.0,0.027935]
[1641912539923,0.63093983,41482.0,41481.0,0.00070391]
[1641912540323,1.35569922,41482.0,41481.0,0.00070391]
[1641912540572,1.35569922,41482.0,41479.0,0.00070393]
[1641912540573,1.39999922,41482.0,41479.0,0.00070393]
[1641912540967,1.44678813,41482.0,41479.0,0.00070393]
[1641912541168,1.45478813,41482.0,41479.0,0.00070393]
[1641912541369,1.16198932,41482.0,41479.0,0.00070393]
[1641912541668,0.80788184,41482.0,41479.0,0.00070393]
[1641912541871,0.80788184,41482.0,41478.0,0.00070395]
[1641912542069,0.47295191,41482.0,41478.0,0.00070395]
[1641912542668,0.7458699,41482.0,41478.0,0.00070395]
[1641912542871,0.34101861,41481.0,41478.0,0.0014079]
[1641912543068,0.38531861,41481.0,41478.0,0.00070395]
[1641912543272,0.104582,41481.0,41478.0,0.00070395]
[1641912543569,0.0443,41481.0,41478.0,0.00070395]
[1641912543769,0.32393746,41481.0,41478.0,0.00070395]
[1641912543968,0.104582,41481.0,41478.0,0.00070395]
[1641912544220,0.104582,41481.0,41477.0,0.59089077]
[1641912544415,0.0443,41481.0,41477.0,0.59089077]
[1641912544618,0.0443,41481.0,41477.0,0.00070396]
[1641912545214,0.0523,41481.0,41477.0,0.00070396]
[1641912545613,0.33263703,41481.0,41477.0,0.00070396]
[1641912546315,0.0523,41481.0,41477.0,0.00070396]
[1641912546515,0.0443,41481.0,41477.0,0.00070396]
[1641912546715,0.3830749,41481.0,41477.0,0.00070396]
[1641912547218,0.0523,41481.0,41480.0,0.73493548]
[1641912547420,0.008,41481.0,41480.0,1.16047748]
[1641912547619,0.008,41481.0,41480.0,1.71047748]
[1641912547819,0.31447046,41492.0,41481.0,0.95]
[1641912548073,1.26587046,41493.0,41486.0,0.30375102]
[1641912548376,0.33821129,41496.0,41487.0,0.27212102]
[1641912548572,0.24318633,41498.0,41487.0,0.37212102]
[1641912548775,0.24318633,41498.0,41492.0,0.00121293]
[1641912548971,0.24318633,41498.0,41493.0,0.29335302]
[1641912549174,0.27118633,41498.0,41493.0,0.29335302]
[1641912549372,0.27118633,41498.0,41493.0,0.34335302]
[1641912550175,0.4445112,41495.0,41492.0,0.00121293]
[1641912550375,0.64932846,41494.0,41488.0,0.00070392]
[1641912550573,0.334858,41494.0,41488.0,0.00070392]
[1641912550977,0.4445112,41495.0,41488.0,0.00070392]
[1641912551175,0.052,41494.0,41489.0,0.27195179]
[1641912551819,0.32991222,41494.0,41488.0,0.00070388]
[1641912552018,0.052,41494.0,41488.0,0.00070388]
[1641912552419,0.4445112,41495.0,41488.0,0.00070388]
[1641912552620,0.31160792,41497.0,41493.0,0.25061338]
[1641912552821,0.334858,41496.0,41493.0,0.25061338]
[1641912553221,0.053,41497.0,41493.0,0.25061338]
[1641912553828,0.053,41497.0,41493.0,0.30061338]
[1641912554023,0.053,41497.0,41495.0,0.00121401]
[1641912554222,0.053,41497.0,41496.0,1.52681454]
[1641912554423,0.31447046,41505.0,41496.0,1.57681454]
[1641912554626,0.31447046,41505.0,41502.0,0.00123934]
[1641912554826,0.00069095,41506.0,41502.0,0.00123934]
[1641912555025,0.000691,41506.0,41502.0,0.00123934]
[1641912555225,0.022,41505.0,41502.0,0.003]
[1641912555469,0.334858,41504.0,41502.0,0.003]
[1641912555666,0.91447046,41503.0,41502.0,0.003]
[1641912555870,1.9166119,41503.0,41502.0,0.003]
[1641912556066,0.68608184,41503.0,41502.0,0.003]
[1641912556469,0.68608184,41503.0,41492.0,0.38168345]
[1641912556668,0.28650203,41501.0,41492.0,0.38168345]
[1641912556969,0.28650203,41501.0,41492.0,0.05]
[1641912557170,0.31447046,41502.0,41496.0,0.25375677]
[1641912557369,0.38622384,41503.0,41496.0,0.25375677]
[1641912557569,0.38622384,41503.0,41496.0,0.35375677]
[1641912558169,0.38622384,41503.0,41496.0,0.30375677]
[1641912558370,0.38622384,41503.0,41491.0,0.77177992]
[1641912558570,0.35122384,41503.0,41492.0,0.05]
[1641912558876,0.31447046,41505.0,41493.0,0.04819175]
[1641912559072,0.031,41503.0,41493.0,0.04819175]
[1641912559320,0.30115955,41499.0,41495.0,0.31799498]
[1641912559620,0.30115955,41499.0,41492.0,0.004]
[1641912559621,0.28125818,41498.0,41492.0,0.004]
[1641912559822,1.62689425,41494.0,41492.0,0.004]
[1641912560020,1.10629381,41493.0,41492.0,0.004]
[1641912560420,0.68081701,41490.0,41488.0,0.00070389]
[1641912560620,0.63533074,41489.0,41488.0,0.00070389]
[1641912560819,0.68353074,41489.0,41488.0,0.00070389]
[1641912561021,0.68353074,41489.0,41488.0,0.00070383]
[1641912561219,0.69153074,41489.0,41488.0,0.01070383]
[1641912562124,0.69153074,41489.0,41488.0,0.01]
[1641912562521,0.68353074,41489.0,41486.0,0.00070382]
[1641912563172,0.69553074,41489.0,41486.0,0.00070382]
[1641912563372,0.395058,41489.0,41485.0,0.00070385]
[1641912563574,0.0602,41489.0,41485.0,0.00070385]
[1641912564373,0.0482,41489.0,41485.0,0.00070385]
[1641912564572,0.4131394,41487.0,41485.0,0.00070387]
[1641912565271,0.32632438,41486.0,41485.0,0.00070387]
[1641912565472,0.4231394,41487.0,41485.0,0.00070387]
[1641912565973,0.4231394,41487.0,41484.0,0.00070387]
[1641912566371,0.4131394,41487.0,41484.0,0.00070387]
[1641912567016,0.4131394,41487.0,41483.0,0.00070389]
[1641912567218,0.4131394,41487.0,41484.0,0.01]
[1641912567219,0.4211394,41487.0,41484.0,0.01]
[1641912567617,0.008,41487.0,41484.0,0.01]
[1641912568519,0.43856797,41487.0,41483.0,0.00070389]
[1641912569121,0.44556797,41487.0,41483.0,0.01670389]
[1641912569318,0.007,41487.0,41483.0,0.01670389]
[1641912569719,0.007,41487.0,41485.0,0.26542075]
[1641912569921,0.007,41487.0,41486.0,1.25]
[1641912570118,0.007,41487.0,41486.0,1.825542]
[1641912570318,0.007,41487.0,41486.0,2.17784292]
[1641912570573,0.40724955,41498.0,41486.0,2.17784292]
[1641912570772,0.40724955,41498.0,41493.0,0.27024254]
[1641912570977,0.40724955,41498.0,41488.0,0.00128546]
[1641912571175,0.41024955,41498.0,41488.0,0.00128546]
[1641912571781,0.91027375,41497.0,41488.0,0.00070388]
[1641912571975,0.30006005,41491.0,41488.0,0.00070388]
[1641912572175,0.060272,41490.0,41488.0,0.00070388]
[1641912572474,0.67932712,41489.0,41488.0,0.00070388]
[1641912573074,0.67932712,41489.0,41487.0,0.00070386]
[1641912573277,0.68832712,41489.0,41487.0,0.00070386]
[1641912573476,0.35346912,41489.0,41487.0,0.00070386]
[1641912573677,0.2634865,41488.0,41487.0,0.00070386]
[1641912573877,0.54272427,41488.0,41487.0,0.00070386]
[1641912574322,0.060273,41487.0,41486.0,0.00070385]
[1641912574521,0.34072553,41487.0,41486.0,0.00070385]
[1641912574718,0.67558353,41487.0,41486.0,0.00070385]
[1641912575118,0.73658353,41487.0,41486.0,0.00070385]
[1641912575520,0.406131,41487.0,41484.0,0.00070386]
[1641912575720,0.011,41487.0,41484.0,0.00070386]
[1641912576519,0.34446912,41489.0,41483.0,0.00070386]
[1641912576720,0.06753297,41490.0,41483.0,0.00070386]
[1641912577120,0.008,41489.0,41483.0,0.00070386]
[1641912577320,0.008,41489.0,41484.0,0.375542]
[1641912577720,0.008,41489.0,41484.0,0.37624588]
[1641912578568,0.06753297,41490.0,41484.0,0.37624588]
[1641912578772,0.24103176,41496.0,41484.0,0.73932856]